Cogmind - Beta 14 @@@ ROGUE MODE // 2024.08.12 @ 23:53:23 Player: Pitt Result: Destroyed by Y-45 Defender with Beam Rifle Performance ------------- Evolutions (1) 500 Regions Visited (3) 600 Robots Destroyed (24) 120 Value Destroyed (509) 509 Prototype IDs (0) 0 Alien Tech Used (0) 0 Bonus (0) 0 TOTAL SCORE: 1729 Bonus ------- None Cogmind --------- Core Integrity 0/400 Matter 285/300 Energy 100/100 System Corruption 0% Temperature Cool (9) Movement Core (100) Ox1 Location -9/Materials Parts ------- > --- POWER (1) -------- (None) > --- PROPULSION (3) --- (None) > --- UTILITY (3) ------ Small Storage Unit Terrain Scan Processor > --- WEAPON (2) ------- (None) > --- INVENTORY (8) ---- Light Ion Engine Light Ion Engine Wheel Wheel Faulty Experimental Sensor Array Seismic Detector Small Laser Peak State ------------ > --- POWER ------------ Ion Engine > --- PROPULSION ------- Wheel Wheel Wheel > --- UTILITY ---------- Small Storage Unit Improved Terrain Scanner Terrain Scan Processor > --- WEAPON ----------- Medium Laser Light Assault Rifle > --- INVENTORY -------- Light Ion Engine Light Ion Engine Wheel Experimental Sensor Array Seismic Detector Grenade Launcher [Rating: 13] Favorites ----------- Power Ion Engine Engine Ion Engine Power Core Light Nuclear Core Propulsion Wheel Leg Aluminum Leg Wheel Wheel Utility Small Storage Unit Device Improved Terrain Scanner Storage Small Storage Unit Processor Terrain Scan Processor Weapon Light Assault Rifle Energy Gun Medium Laser Ballistic Gun Light Assault Rifle Launcher Grenade Launcher Build | -11 -10 -10 -9 ------- Run | Yrd Mat Min Mat Slots Evolved 2 | . . . 2 Power . | . . . . Propulsion 1 | . . . 1 Utility 1 | . . . 1 Weapon . | . . . . Parts Attached 21 | 7 . 1 13 Power 2 | 1 . . 1 Engine 1 | 1 . . . Core 1 | . . . 1 Reactor . | . . . . Propulsion 6 | 2 . . 4 Treads . | . . . . Leg 3 | . . . 3 Wheel 3 | 2 . . 1 Hover . | . . . . Flight . | . . . . Utility 5 | 2 . 1 2 Device 3 | 1 . 1 1 Storage 1 | 1 . . . Processor 1 | . . . 1 Hackware . | . . . . Protection . | . . . . Artifact . | . . . . Weapon 8 | 2 . . 6 Energy Gun 3 | 1 . . 2 Energy Cannon . | . . . . Ballistic Gun 3 | 1 . . 2 Ballistic Cannon . | . . . . Launcher 2 | . . . 2 Special Weapon . | . . . . Impact Weapon . | . . . . Slashing Weapon . | . . . . Piercing Weapon . | . . . . Special Melee Weapon . | . . . . Unidentified Prototypes . | . . . . Parts Lost 11 | . . . 11 Power 2 | . . . 2 Propulsion 3 | . . . 3 Utility 1 | . . . 1 Weapon 5 | . . . 5 Highest Loss Streak 10 | . . . 10 To Critical Strikes . | . . . . Average Slot Usage (%) 97 | . 100 100 90 Engine 12 | . 14 14 10 Leg 4 | . . . 14 Wheel 23 | . 28 28 14 Device 12 | . 14 14 10 Storage 13 | . 14 14 11 Processor 3 | . . . 11 Energy Gun 12 | . 14 14 8 Ballistic Gun 12 | . 14 14 10 Peak Build Rating 13 | 9 9 9 13 Average Rating 9 | 6 9 8 12 On Entrance 6 | . 9 9 8 Naked Turns . | . . . . Heaviest Build 15 | 14 14 14 15 Greatest Support 30 | 20 20 20 30 Greatest Overweight (x) 3 | . . . 3 Average Overweight (x) . | . . . . Largest Inventory Capacity 8 | 8 8 8 8 Average Capacity 7 | 7 8 8 8 Most Carried 8 | 4 7 8 8 Average Carried 6 | 1 5 7 7 Final Capacity 8 | 8 8 8 8 Final Carried 8 | 4 7 8 7 Class Distribution -------------------- 90% | Mutant 9% | Scavenger-Mutant Dominant Class ---------------- Mutant | -10/Materials Mutant | -10/Mines Mutant | -9/Materials Resources | -11 -10 -10 -9 ----------- Run | Yrd Mat Min Mat Matter Collected 459 | 291 13 17 138 Remotely . | . . . . Salvage Created 745 | 140 104 119 382 Parts 49 | 10 12 7 20 Haulers Intercepted . | . . . . Recyclers Shooed . | . . . . Parts Field Recycled . | . . . . Retrieved Matter . | . . . . Parts Self-Destructed . | . . . . Prevented . | . . . . Kills | -11 -10 -10 -9 ------- Run | Yrd Mat Min Mat Combat Hostiles Destroyed 14 | . 4 . 10 Guns 10 | . 4 . 6 AOE 4 | . . . 4 Classes Destroyed 5 | 2 3 . . Builder 1 | . 1 . . Tunneler 7 | 5 . 2 . Recycler 2 | 1 . 1 . Swarmer 3 | . 3 . . Grunt 11 | . 1 . 10 Best Kill Streak 4 | 4 3 3 4 Combat Bots Only 4 | . 2 . 4 Max Kills in Single Turn 2 | 1 1 1 2 Gunslinging . | . . . . Exploded 2 | . . . 2 Melee . | . . . . Uniques/NPCs Destroyed . | . . . . Combat | -11 -10 -10 -9 -------- Run | Yrd Mat Min Mat Hostile Shots Fired 155 | . 4 2 149 Missed 46 | . . 1 45 Damage Taken 1347 | . 33 13 1301 Core 422 | . 13 . 409 Absorbed by Shields . | . . . . Core Remaining (%) 97 | 100 . 94 . Volleys Fired 94 | 21 15 5 53 Largest 2 | 2 2 2 2 Hottest 70 | 70 70 70 70 Shots Fired 155 | 42 30 10 73 Gun 152 | 42 30 10 70 Cannon . | . . . . Launcher 3 | . . . 3 Special . | . . . . Kinetic 89 | 21 15 5 48 Thermal 63 | 21 15 5 22 Explosive 3 | . . . 3 Electromagnetic . | . . . . Robot Hit Streak 11 | 4 3 7 11 Robot Miss Streak 6 | 2 6 1 4 Penetration Max . | . . . . Secondary Targets 1 | . . . 1 Max Gunslinging Chain 1 | . . . 1 Shots Hit Robots 97 | 24 14 7 52 Core Hits 45 | 8 7 4 26 Critical Kills . | . . . . Critical Parts Destroyed . | . . . . Critical Strikes 2 | 2 . . . Burn 2 | 2 . . . Melee Attacks . | . . . . Impact . | . . . . Slashing . | . . . . Piercing . | . . . . Sneak Attacks . | . . . . Combat Hostiles . | . . . . Follow-up Attacks . | . . . . Damage Inflicted 1254 | 267 95 70 822 Guns 919 | 267 95 70 487 Cannons . | . . . . Explosions 335 | . . . 335 Melee . | . . . . Ramming . | . . . . Kinetic 433 | 80 34 22 297 Thermal 486 | 187 61 48 190 Explosive 335 | . . . 335 Electromagnetic . | . . . . Impact . | . . . . Slashing . | . . . . Piercing . | . . . . Highest Corruption . | . . . . Average Corruption . | . . . . Corruption Purged . | . . . . Corruption Blocked . | . . . . Overload Shots . | . . . . Overflow Damage . | . . . . Projectiles . | . . . . Explosions . | . . . . Melee . | . . . . Knockbacks . | . . . . Impact . | . . . . Kinetic . | . . . . Secondary . | . . . . Self-Inflicted Damage 40 | . . . 40 Shots 1 | . . . 1 Rammed . | . . . . Targets Rammed . | . . . . Kicked . | . . . . Crushed . | . . . . Highest Temperature 180 | 120 70 50 180 Average Temperature 46 | 53 26 23 56 Received Heat Transfer 534 | . . 9 525 Siege Activations . | . . . . Robots Corrupted . | . . . . Combat Hostiles . | . . . . Parts Fried . | . . . . Impact Corruptions . | . . . . Robots Melted . | . . . . Combat Hostiles . | . . . . Parts Melted 4 | 4 . . . Heat Transferred 1556 | 703 185 148 520 Parts Sabotaged . | . . . . Parts Stolen . | . . . . Parts Stripped . | . . . . Power Chain Reactions . | . . . . Alert | -11 -10 -10 -9 ------- Run | Yrd Mat Min Mat Peak Influence 202 | 30 133 66 202 Initial 51 | . 19 51 . Average 49 | 16 81 47 53 Maximum Alert Level 1 | . . . 1 Low Security (%) 99 | 100 100 100 97 Level 1 . | . . . 2 Level 2 . | . . . . Level 3 . | . . . . Level 4 . | . . . . Level 5 . | . . . . High Security . | . . . . Max Security . | . . . . Squads Dispatched 1 | . . . 1 Investigation . | . . . . Extermination . | . . . . Reinforcement 1 | . . . 1 Assault . | . . . . Garrison . | . . . . Intercept . | . . . . Searches Triggered . | . . . . Construction Impeded . | . . . . Haulers Reinforced . | . . . . Active Scanning Responses . | . . . . Cargo Convoy Interrupts . | . . . . Stealth | -11 -10 -10 -9 --------- Run | Yrd Mat Min Mat Distress Signals 3 | . 3 . . Communications Jammed . | . . . . Distress Signals . | . . . . Times Spotted 27 | . 7 2 18 Peak Tracking Total 8 | . 5 2 8 Tactical Retreats . | . . . . Traps | -11 -10 -10 -9 ------- Run | Yrd Mat Min Mat Traps Triggered 1 | . . . 1 Indirectly . | . . . . Trap Hack Attempts . | . . . . Triggered . | . . . . Disarmed . | . . . . Reprogrammed . | . . . . Reused . | . . . . Traps Extracted . | . . . . Installed . | . . . . Triggered . | . . . . Machines | -11 -10 -10 -9 ---------- Run | Yrd Mat Min Mat Machines Disabled . | . . . . Max in Single Turn . | . . . . Machines Repaired . | . . . . Machines Dismantled . | . . . . Machines Sabotaged . | . . . . Overloaded Fab Kills . | . . . . Hacking | -11 -10 -10 -9 --------- Run | Yrd Mat Min Mat Machines Accessed 1 | . 1 . . Terminals 1 | . 1 . . Fabricators . | . . . . Repair Stations . | . . . . Recycling Units . | . . . . Scanalyzers . | . . . . Garrison Access . | . . . . Total Hacks 2 | . 2 . . Successful 2 | . 2 . . Failed . | . . . . Catastrophic . | . . . . Database Lockouts . | . . . . Manual . | . . . . Terminals 2 | . 2 . . Fabricators . | . . . . Repair Stations . | . . . . Recycling Units . | . . . . Scanalyzers . | . . . . Garrison Access . | . . . . Terminal Hacks 2 | . 2 . . Alert Level 1 | . 1 . . Dispatch Records 1 | . 1 . . Fabricator Hacks . | . . . . Repair Station Hacks . | . . . . Recycling Unit Hacks . | . . . . Scanalyzer . | . . . . Garrison Access Hacks . | . . . . Unauthorized Hacks . | . . . . Terminals . | . . . . Fabricators . | . . . . Repair Stations . | . . . . Recycling Units . | . . . . Scanalyzers . | . . . . Garrison Access . | . . . . Data Cores Recovered . | . . . . Used . | . . . . Hacking Detections 1 | . 1 . . Full Trace Events . | . . . . Feedback Events . | . . . . Feedback Blocked . | . . . . Robot Schematics Acquired . | . . . . Robots Built . | . . . . Authchips . | . . . . Time . | . . . . Total Robot Build Rating . | . . . . Part Schematics Acquired . | . . . . Parts Built . | . . . . Authchips . | . . . . Time . | . . . . Total Part Build Rating . | . . . . Parts Repaired . | . . . . Time . | . . . . Parts Recycled . | . . . . Recycled Matter . | . . . . Retrieved Matter . | . . . . Retrieved Components . | . . . . Parts Scanalyzed . | . . . . Part Schematics Acquired . | . . . . Parts Damaged . | . . . . Bothacking | -11 -10 -10 -9 ------------ Run | Yrd Mat Min Mat Used RIF Installer . | . . . . Robots Hacked . | . . . . Non-combat . | . . . . Combat . | . . . . Robot Hacks Applied . | . . . . Relay Couplers Released . | . . . . Fabnet Peak Effective % . | . . . . Robots Rewired . | . . . . Allies Hacked . | . . . . Hacks Repelled . | . . . . Allies | -11 -10 -10 -9 -------- Run | Yrd Mat Min Mat Total Allies . | . . . . Largest Group . | . . . . Highest-Rated Group . | . . . . Highest-Rated Ally . | . . . . Total Orders . | . . . . Ally Attacks . | . . . . Total Damage . | . . . . Kills . | . . . . Allies Corrupted . | . . . . Allies Melted . | . . . . Intel | -11 -10 -10 -9 ------- Run | Yrd Mat Min Mat Robot Analysis Total . | . . . . Derelict Logs Recovered 1 | . . 1 . Drone Launches . | . . . . Drone Recoveries . | . . . . Exploration | -11 -10 -10 -9 ------------- Run | Yrd Mat Min Mat Turns Passed 1160 | 191 182 475 312 Spaces Moved 584 | 149 150 202 83 Core 10 | 4 . . 6 Treads . | . . . . Legs 39 | . . . 39 Wheels 535 | 145 150 202 38 Hover . | . . . . Flight . | . . . . Fastest Speed 50 | 50 80 80 80 Average Speed 83 | 79 80 80 104 Slowest Speed 200 | 80 80 80 200 Overloaded Moves . | . . . . Propulsion Burnouts . | . . . . Robots Hopped . | . . . . Cave-ins Triggered . | . . . . Exploration Rate (%) 20 | 4 25 41 12 Regions Visited 3 Branch Regions 1 Pre-discovered Areas . | . . . . Known Exits Taken . | . . . . Unknown Exits Taken 3 | 1 1 1 . Scrap Searched . | . . . . Spaces Dug . | . . . . Terrain Destroyed 16 | . . . 16 Melee . | . . . . Projectile . | . . . . AOE 16 | . . . 16 Terrain Rammed . | . . . . Walls Destroyed . | . . . . Machines Disabled . | . . . . Actions | -11 -10 -10 -9 --------- Run | Yrd Mat Min Mat Total 1115 | 181 184 506 244 Wait 397 | . 17 294 86 Move 581 | 148 149 201 83 Hop . | . . . . Pick Up 14 | 5 3 3 3 Fast Attach 11 | 6 . . 5 Attach 6 | 1 . . 5 Detach 3 | . . . 3 Swap 4 | . . 1 3 Drop 5 | . . 2 3 Fire 94 | 21 15 5 53 Melee . | . . . . Ram . | . . . . Kick . | . . . . Crush . | . . . . Escape Stasis . | . . . . Rewire . | . . . . Trap . | . . . . Miscellaneous . | . . . . Route ------- -11/Scrapyard -10/Materials -10/Mines -9/Materials History --------- Turn | Location | Event 19 | -11/Scrapyard | Discovered new exit (range 15) 192 | -11/Scrapyard | Entered Materials 307 | -10/Materials | Build established: Mutant 370 | -10/Materials | Discovered new exit (range 6) 374 | -10/Materials | Entered Mines 775 | -10/Mines | Found a damaged Exp. Sensor Array with a note attached 777 | -10/Mines | Found Prototype Device 840 | -10/Mines | Learned Materials terminal intel 842 | -10/Mines | Discovered new exit (range 9) 849 | -10/Mines | Entered Materials 849 | -9/Materials | Evolved 2 slots: Propulsion x1, Utility x1 850 | -9/Materials | Loaded intel: 12 terminal locations 1146 | -9/Materials | Core integrity fell below 50% 1156 | -9/Materials | Core integrity fell below 20% 1161 | -9/Materials | Destroyed by Y-45 Defender with Beam Rifle Last Messages --------------- 01143_ G-34 Mercenary destroyed. 01143_ U-05 Engineer lays Concrete. 01143_ Lgt. Assault Rifle destroyed. 01144_ U-05 Engineer lays Concrete. 01145_ Acquired 36 matter. 01147_ U-05 Engineer builds a Door. 01148_ Acquired Sml. Laser. 01149_ Sml. Laser destroyed. 01151_ U-05 Engineer lays Concrete. 01151_ Acquired 15 matter. 01152_ U-05 Engineer lays Concrete. 01152_ Imp. Terrain Scanner destroyed. 01153_ U-05 Engineer builds a Wall. 01155_ Sml. Laser destroyed. 01157_ U-05 Engineer builds a Wall. 01157_ Lgt. Nuclear Core destroyed. 01160_ K-01 Serf collects debris. 01161_ Acquired Sml. Laser. 01161_ R-06 Scavenger collects Ion Engine. 01161_ G-34 Mercenary destroyed. Map ----- +----------------------------------------------------+ | ?????????????????????????????????????????????????? | | ?????????????????????????????????????????????????? | | ????????????????????????????????????????"T"??????? | | ?????????????????????????????????????????????????? | | ?????????????????????????????????????????????????? | | ?????????????????????????????????????????????????? | | ?????????????????????????????????????????????????? | | ?????????????????????????????????????????????????? | | ?????????????????????????????????????????????????? | | ?????????????????????????????????????????????T???? | | ?????????????????????????????????????????????????? | | ??????????????????? ?#??#????????????????????????? | | ?????????????????????#?#?#???????????????????????? | | ????????????????????#??#??# ? ???????????????????? | | ????????????????? ? "?????#"?? ?????????????????? | | ????????????????????T??#??#??? ??? ??????????????? | | ????????????????? ??"?#??#???????# ?????????????? | | ????????????? ?? ? #???#???? ? # ""???????????? | | ????????????? ??????#??##?#?#??##???""???????????? | | ?????????????????###?##??##??##?????"?"??????????? | | ????????? ????? ?? ???########?##? ?? ?? ???????? | | ??????????"???????????# #???#???#???????????? | | ???????????"????""? ??# """ ###??####????#??????? | | ????????? ??"???????### """ #####?### ##????????? | | ?????????? ?????????## %""" #??#########?#??????? | | ???????????????? ???## %@ ##?#?? ? ????????? | | ???????#?????+???????# !!=% ##### ? #???#??? | | ???????????? ? ######k*% u####### ? ?? ##??#??? | | ??????????? = * # ? ? ######?? | | ?????????? s Ys #? ?? ##?###?? | | ???????? ?? Y s r # ##??#### | | ??????????? ###+#### ## / #????#?# | | ??????????## ???# ? # # # ##?###?# | | ???????????# ???## ? ?# ## #? [#?#?#### | | ??????????#?? ??# ?# " ## #######?####?#?## | | ????????????? ???? "" #""" # ################ | | ???????????? #?#?T" #""" # | | ?????????????? ??? "" #""" + T | | ???????????????### # "" # % | | ?????????????? ########?"" =# ####### ###### | | ?????????????? # T? #"? #######?##### ###### | | ????????????? ?# #"" ####?#?###### #?#?#? | | ???????????????+ ?"? # " #?########### ###?## | | ???????????? ? ? ??" #? ############ ##### | | ???????????? # ""?? ########### | | ????????????? #? ?? + | | ?????????????+??################# | | ????????????? ??? ##?#########[ ##### ##### | | ???????????? ?? ? ?#?#??## =% ########?## | | ?????????????? ?"" ####### !* " ####?#?#### | +----------------------------------------------------+ Best States ------------- Heat Dissipation 28 Energy Generation 10 Energy Capacity 250 Matter Stores 300 Matter Capacity 300 Sight Range 16 Terrain Scan Range 16 Terrain Scan Density 85 Evasion (%) 50 Item Schematics ----------------- None Robot Schematics ------------------ None Fabricated ------------ Nothing Alien Tech Used ----------------- None Achievements -------------- None Challenges ------------ None Game ------ Seed AssemblyProtonNetwork Manual? 0 Play Time 00:10:14 Cumulative 203.4 hours Start 2024.08.12 @ 23:41:46 End 2024.08.12 @ 23:53:23 Sessions 1 Manual Loads 0 Difficulty Rogue Special Mode None Game No. 313 Rogue 313 Adventurer 0 Explorer 0 Win Type - Total 0 Types 0/0/0/0/0/0/0/0/0 Lore% 31 Gallery% 54 Achievement% 40 Wizard Run 0 Options --------- Layout 0 ASCII 0 Keyboard 0 Movement Mouse Keybinds 0 Fullscreen 1 Font 18/SmallcapsGlow Map View 76x50 Zoom Use 0% Tactical HUD 1 Map Filters NONE Filters NONE Steam 1 RUN: 6ae0c330-aa55-49a7-aa32-e7f5140e57f9